bitfinex-derivatives/quotes_ETHF0:USTF0_20250214
["timestamp","ask_amount","ask_price","bid_price","bid_amount"]
[1739526994192,0.5813,2714.1,2714.0,4.49043578]
[1739526994504,3.2078,2715.1,2714.0,3.75362578]
[1739526994700,0.73664,2714.6,2714.5,3.2078]
[1739526994884,0.73664,2714.6,2714.5,4.332]
[1739526998700,1.579,2714.9,2714.5,4.332]
[1739526998701,0.73661,2714.8,2714.6,0.73663]
[1739526999095,0.73661,2714.8,2714.6,1.29583]
[1739526999501,0.7366,2714.8,2714.6,1.29584]
[1739526999996,2.7281,2715.0,2714.6,0.5592]
[1739527000201,3.2078,2715.1,2714.6,0.5592]
[1739527000391,3.2078,2715.1,2714.9,0.73655]
[1739527000597,0.73654,2715.0,2714.6,0.5592]
[1739527000803,0.73654,2715.0,2714.8,0.73658]
[1739527001099,3.7825,2715.1,2714.7,0.7366]
[1739527001100,0.73657,2714.9,2714.7,0.7366]
[1739527001491,0.73659,2714.9,2714.6,1.29582]
[1739527001694,0.5782,2715.0,2714.6,0.5592]
[1739527002015,0.5782,2715.0,2714.6,1.29583]
[1739527002016,1.29051,2714.8,2714.6,1.29583]
[1739527002701,0.5539,2714.8,2714.6,0.5592]
[1739527002897,0.73662,2714.7,2714.6,0.5592]
[1739527003306,0.5539,2714.8,2714.6,0.5592]
[1739527003697,1.2905,2714.8,2714.6,1.29584]
[1739527004402,1.29049,2714.8,2714.7,0.73662]
[1739527004602,1.29049,2714.8,2714.6,0.5592]
[1739527004801,0.5539,2714.8,2714.6,1.29583]
[1739527005001,1.2905,2714.8,2714.6,1.29583]
[1739527005204,1.29051,2714.8,2714.6,1.29583]
[1739527005397,1.2905,2714.8,2714.6,1.29582]
[1739527006209,1.2905,2714.8,2714.7,0.73662]
[1739527006410,0.5539,2714.8,2714.6,1.29582]
[1739527006707,1.29051,2714.8,2714.6,1.29582]
[1739527006909,0.5539,2714.8,2714.6,1.29582]
[1739527007209,0.5539,2714.8,2714.6,1.29584]
[1739527007410,0.73662,2714.7,2714.6,1.29584]
[1739527008626,0.73662,2714.7,2714.6,0.5592]
[1739527010012,0.73662,2714.7,2714.6,1.29584]
[1739527010606,0.73662,2714.7,2714.6,0.5592]
[1739527011010,0.73662,2714.7,2714.6,1.29584]
[1739527011213,0.73662,2714.7,2714.6,0.5592]
[1739527011413,0.5539,2714.8,2714.5,3.2078]
[1739527011414,0.73664,2714.6,2714.5,3.2078]
[1739527012011,2.1329,2714.8,2714.2,3.7572]
[1739527012212,2.1329,2714.8,2714.4,0.73669]
[1739527012213,1.29399,2714.5,2714.4,0.73669]
[1739527013408,0.73671,2714.4,2714.3,0.73671]
[1739527014117,0.5573,2714.5,2714.2,4.7837807]
[1739527014416,0.5573,2714.5,2714.3,0.73671]
[1739527014417,0.73672,2714.4,2714.3,0.73671]
[1739527017116,0.73672,2714.4,2714.3,1.30691]
[1739527017819,1.29399,2714.5,2714.4,0.7367]
[1739527018111,1.29399,2714.5,2714.3,0.5702]
[1739527018415,0.7367,2714.4,2714.3,0.5702]
[1739527018610,0.7367,2714.4,2714.3,1.30693]
[1739527019211,0.7367,2714.4,2714.3,1.89283]
[1739527020017,0.7367,2714.4,2714.3,1.1561]
[1739527020219,0.7367,2714.4,2714.3,1.89283]
[1739527020918,0.7367,2714.4,2714.3,1.1561]
[1739527021116,0.7367,2714.4,2714.3,1.89283]
[1739527021314,0.7367,2714.4,2714.2,4.7837807]
[1739527021315,1.6173807,2714.6,2714.2,3.2078]
[1739527021516,1.29753,2714.3,2714.2,3.2078]
[1739527022218,1.29753,2714.3,2714.0,0.74232578]
[1739527022219,0.73678,2714.1,2714.0,0.74232578]
[1739527022806,0.73678,2714.1,2714.0,0.00552578]
[1739527024622,1.5812807,2714.2,2714.0,0.00552578]
[1739527024810,1.29146,2714.2,2714.0,1.76889648]
[1739527025013,0.73678,2714.1,2714.0,1.03210648]
[1739527025721,0.73678,2714.1,2714.0,0.00552578]
[1739527026918,1.29147,2714.2,2714.0,0.74231578]
[1739527027414,0.73678,2714.1,2714.0,0.74231578]
[1739527027609,0.5547,2714.2,2714.0,0.00552578]
[1739527027815,1.29148,2714.2,2714.0,0.00552578]
[1739527028016,1.29148,2714.2,2714.0,0.74231578]
[1739527028216,0.73678,2714.1,2714.0,0.74231578]
[1739527028522,0.5547,2714.2,2714.0,0.74231578]
[1739527028918,0.73678,2714.1,2714.0,0.74233578]
[1739527029319,0.5547,2714.2,2714.0,0.00552578]
[1739527029515,1.29148,2714.2,2714.0,0.74231578]
[1739527029716,0.73678,2714.1,2714.0,0.74231578]
[1739527029917,0.73678,2714.1,2714.0,0.74233578]
[1739527030126,0.5547,2714.2,2714.0,0.00552578]
[1739527030518,0.5608,2714.3,2714.1,0.73678]
[1739527030717,0.5608,2714.3,2714.2,1.85135]
[1739527031615,3.2078,2715.1,2714.2,5.3489807]
[1739527031812,1.126,2715.0,2714.6,3.94443]
[1739527032026,1.126,2715.0,2714.7,1.0816]
[1739527032216,0.73659,2714.8,2714.7,1.0816]
[1739527032422,1.126,2715.0,2714.7,1.0816]
[1739527032724,0.73659,2714.8,2714.7,1.0816]
[1739527032920,0.73659,2714.9,2714.7,1.81822]
[1739527033127,0.73659,2714.8,2714.7,1.0816]
[1739527034120,1.126,2715.0,2714.7,1.0816]
[1739527034423,0.73659,2714.8,2714.7,1.0816]
[1739527036319,3.3499015,2715.0,2714.6,3.2078]
[1739527036521,0.73662,2714.7,2714.6,3.2078]
[1739527036828,0.7367,2714.5,2714.3,3.2078]
[1739527037027,0.5939,2714.4,2714.3,3.2078]
[1739527037327,0.5939,2714.4,2714.3,3.61457501]
[1739527037522,0.5939,2714.4,2714.3,3.2078]
[1739527037728,0.5939,2714.4,2714.3,3.94453]
[1739527038230,4.0653115,2715.0,2714.3,3.94453]
[1739527038231,0.73652,2715.1,2714.4,1.84175]
[1739527038524,0.73655,2715.0,2714.8,0.73657]
[1739527038728,0.73654,2715.0,2714.9,1.1449]
[1739527039227,1.581,2715.3,2714.9,1.1449]
[1739527039427,0.73654,2715.0,2714.9,1.1449]
[1739527039632,1.581,2715.3,2714.9,1.1449]
[1739527039826,1.581,2715.3,2714.9,1.88145]
[1739527040021,0.73652,2715.1,2714.9,1.88145]
[1739527040217,1.581,2715.3,2714.9,1.1449]
[1739527040422,1.582,2715.3,2714.9,1.88144]
[1739527040627,0.73652,2715.1,2714.9,1.1449]
[1739527040828,0.73647,2715.3,2715.1,0.73649]
[1739527041028,4.7888,2715.4,2714.9,1.1449]
[1739527041426,0.73646,2715.3,2715.1,0.73649]
[1739527041624,3.2078,2715.4,2714.9,1.1449]
[1739527041822,1.3303,2715.5,2715.1,3.2078]
[1739527042127,1.33031,2715.5,2715.2,0.5805]
[1739527042426,1.33031,2715.5,2715.3,1.29924]
[1739527042633,0.5939,2715.5,2715.3,1.1071]
[1739527042826,0.73638,2715.6,2715.4,0.73641]
[1739527043032,0.73638,2715.6,2715.3,1.1071]
[1739527043227,0.73638,2715.6,2715.3,1.84354]
[1739527043633,0.73639,2715.6,2715.3,1.84354]
[1739527043835,0.73638,2715.6,2715.3,1.84354]
[1739527044139,3.2078,2715.7,2715.3,1.84354]
[1739527044433,3.2078,2715.7,2715.3,1.1071]
[1739527044637,0.73639,2715.6,2715.3,1.1071]
[1739527044927,3.2078,2715.7,2715.3,1.1071]
[1739527045129,0.73637,2715.6,2715.3,1.1071]
[1739527045331,0.73637,2715.6,2715.3,1.84353]
[1739527045533,0.73637,2715.6,2715.3,1.1071]
[1739527045725,3.2078,2715.7,2715.3,1.1071]
[1739527046127,0.5708,2715.8,2715.3,1.1071]
[1739527046335,0.73635,2715.7,2715.5,0.73639]
[1739527047130,0.5708,2715.8,2715.4,3.2078]
[1739527047333,0.7364,2715.5,2715.4,3.2078]
[1739527048035,0.7364,2715.5,2715.4,3.94423]
[1739527048235,0.7364,2715.6,2715.4,3.2078]
[1739527049135,0.7364,2715.6,2715.4,3.94422]
[1739527049338,0.5708,2715.8,2715.4,3.94422]
[1739527049536,0.7364,2715.5,2715.4,3.2078]
[1739527049739,0.7364,2715.5,2715.4,3.94423]
[1739527050735,0.7364,2715.5,2715.4,3.94422]
[1739527050936,0.7364,2715.5,2715.4,3.94421]
[1739527052031,0.7364,2715.5,2715.4,3.2078]
[1739527052237,0.73643,2715.4,2715.3,1.11262578]
[1739527053543,0.73643,2715.4,2715.3,0.00552578]
[1739527057140,1.31443,2715.4,2715.3,0.00552578]
[1739527058144,4.52223,2715.4,2715.3,0.00552578]
[1739527061039,5.11463,2715.4,2715.3,0.00552578]
[1739527061245,10.3782,2715.4,2714.8,0.5419]
[1739527061433,0.5932,2715.3,2714.8,0.5419]
[1739527061636,4.3782,2715.4,2715.0,2.9604315]
[1739527061637,0.7365,2715.2,2715.0,2.9604315]
[1739527061832,0.7365,2715.2,2715.1,0.5513]
[1739527062640,0.578,2715.4,2715.1,0.5513]
[1739527062952,0.73648,2715.2,2715.1,0.5513]
[1739527063343,0.73647,2715.3,2715.1,0.5513]
[1739527063747,0.578,2715.4,2715.1,0.5513]
[1739527064044,0.73647,2715.3,2715.1,0.5513]
[1739527064247,1.31444,2715.4,2715.1,1.28781]
[1739527064450,1.31444,2715.4,2715.2,0.73648]
[1739527064844,1.31444,2715.4,2715.1,0.5513]
[1739527064845,0.578,2715.4,2715.1,0.5513]
[1739527065036,1.31443,2715.4,2715.2,0.73647]
[1739527065241,0.578,2715.4,2715.3,1.29305]
[1739527066741,0.578,2715.4,2715.3,0.5566]
[1739527066947,1.31443,2715.4,2715.3,0.5566]
[1739527067441,1.31443,2715.4,2715.3,1.29305]
[1739527067442,0.578,2715.4,2715.3,1.29305]
[1739527067646,0.7364,2715.5,2715.3,1.29305]
[1739527067847,1.3041,2715.5,2715.3,1.29305]
[1739527068048,0.73643,2715.4,2715.3,0.5566]
[1739527069044,0.73645,2715.3,2715.2,3.2078]
[1739527069739,0.73645,2715.4,2715.2,3.94427]
[1739527069941,0.73645,2715.3,2715.2,3.2078]
[1739527070341,0.73645,2715.4,2715.2,3.94428]
[1739527070650,0.73645,2715.3,2715.2,3.94428]
[1739527070949,0.73645,2715.3,2715.2,3.2078]
[1739527071446,0.73645,2715.3,2715.2,3.94428]
[1739527071841,0.73645,2715.3,2715.2,3.2078]
[1739527072042,0.73644,2715.4,2715.2,3.94428]
[1739527072850,0.73641,2715.5,2715.4,0.73642]
[1739527073542,0.73641,2715.5,2715.4,0.5745]
[1739527075948,0.73641,2715.5,2715.4,0.5456]
[1739527079851,0.00552578,2715.6,2715.1,1.83049]
[1739527080155,0.73646,2715.3,2715.2,0.5396]
[1739527086058,0.73654,2715.0,2714.9,3.94988578]
[1739527086254,0.73654,2715.0,2714.9,3.21332578]
[1739527086558,0.73654,2715.0,2714.9,3.94987578]
[1739527086757,0.73654,2715.0,2714.9,3.21332578]
[1739527087456,0.73654,2715.0,2714.9,4.35722578]
[1739527087658,0.73654,2715.0,2714.9,5.09378578]
[1739527087953,1.85609,2715.2,2714.9,4.35722578]
[1739527088257,0.73653,2715.1,2714.9,4.35722578]
[1739527088651,1.3151,2715.2,2715.0,0.73652]
[1739527088851,1.3151,2715.2,2715.1,0.5708]
[1739527089247,0.7365,2715.2,2715.1,0.5708]
[1739527089453,1.578,2715.3,2715.1,1.30729]
[1739527089650,0.73648,2715.2,2715.1,0.5708]
[1739527090059,0.73648,2715.2,2715.1,1.30731]
[1739527090454,0.73648,2715.2,2715.1,0.5708]
[1739527090659,1.30558,2715.2,2715.1,0.5708]
[1739527091754,0.5691,2715.2,2714.9,3.76482578]
[1739527091949,0.73654,2715.0,2714.9,3.76482578]
[1739527092156,1.29052,2715.1,2715.0,0.73654]
[1739527092463,0.73654,2715.0,2714.9,3.76482578]
[1739527096666,0.5691,2715.2,2714.9,3.76482578]
[1739527096969,0.73652,2715.1,2714.9,4.50136578]
[1739527097165,0.5691,2715.2,2715.1,0.73651]
[1739527097371,1.30559,2715.2,2715.0,0.73652]
[1739527097562,0.73651,2715.1,2715.0,0.73652]
[1739527098868,0.5691,2715.2,2715.0,0.73652]
[1739527099064,1.3056,2715.2,2715.0,0.73652]
[1739527099265,0.73652,2715.1,2714.9,3.76482578]
[1739527099464,3.94432,2715.1,2714.8,0.08606578]
[1739527099674,3.94432,2715.1,2715.0,0.73654]
[1739527100478,3.2078,2715.1,2715.0,0.73654]
[1739527100678,0.559,2715.3,2714.8,0.09159156]
[1739527100879,1.29547,2715.3,2715.1,0.73649]
[1739527101678,1.29547,2715.3,2715.1,1.76249519]
[1739527102080,1.29547,2715.3,2715.1,1.02600519]
[1739527102081,0.559,2715.3,2715.1,1.02600519]
[1739527102277,0.73648,2715.2,2715.1,1.02600519]
[1739527102479,0.73648,2715.2,2715.1,1.76251519]
[1739527102679,0.73648,2715.2,2715.1,1.02600519]
[1739527103077,1.29547,2715.3,2715.2,0.73648]
[1739527103377,1.29547,2715.3,2715.1,1.76248519]
[1739527103683,1.29547,2715.3,2715.1,1.02600519]
[1739527103884,1.29548,2715.3,2715.1,1.76249519]
[1739527104382,1.29548,2715.3,2715.1,1.02600519]
[1739527104581,1.29548,2715.3,2715.2,0.73648]
[1739527105485,1.29548,2715.3,2715.1,1.76248519]
[1739527105685,1.29548,2715.3,2715.1,1.02600519]
[1739527105983,1.29548,2715.3,2715.2,0.73648]
[1739527106285,1.29548,2715.3,2715.1,1.76248519]
[1739527106585,0.73648,2715.2,2715.1,1.76248519]
[1739527106882,0.73648,2715.2,2715.1,1.02600519]
[1739527107273,1.29546,2715.3,2715.2,0.73648]
[1739527107484,1.29546,2715.3,2715.1,1.76249519]
[1739527107684,0.73648,2715.2,2715.1,1.76249519]
[1739527108281,3.2078,2715.4,2715.1,1.02600519]
[1739527108585,3.2078,2715.4,2715.3,1.76245519]
[1739527108977,3.94423,2715.4,2715.3,1.02600519]
[1739527109180,3.94423,2715.4,2715.3,1.76245519]
[1739527109181,3.2078,2715.4,2715.3,1.76245519]
[1739527110688,3.94423,2715.4,2715.3,1.76245519]
[1739527110998,3.94423,2715.4,2715.3,1.02600519]
[1739527112191,5.52223,2715.4,2715.3,1.02600519]
[1739527112393,0.73651,2715.2,2715.1,1.02600519]
[1739527114694,1.7104,2715.3,2715.1,1.02600519]
[1739527114898,1.7104,2715.3,2715.1,1.76249519]
[1739527114899,2.44687,2715.3,2715.1,1.76249519]
[1739527115099,0.73648,2715.2,2715.1,1.02600519]
[1739527116800,3.2078,2715.4,2715.1,1.02600519]
[1739527116990,3.2078,2715.4,2715.3,1.76245519]
[1739527117598,3.2078,2715.4,2715.3,0.73645]
[1739527117990,3.2078,2715.4,2715.3,1.32985]
[1739527122097,3.94423,2715.4,2715.3,1.32985]
[1739527122905,3.2078,2715.4,2715.3,1.32985]
[1739527123102,3.94423,2715.4,2715.3,1.32985]
[1739527123298,3.2078,2715.4,2715.3,1.32985]
[1739527132203,3.2078,2715.4,2715.3,0.5934]
[1739527132410,0.73647,2715.3,2715.2,0.73646]
[1739527132713,1.30317,2715.3,2715.2,0.73646]
[1739527133106,0.5667,2715.3,2715.2,0.73646]
[1739527136506,1.30315,2715.3,2715.2,0.73646]
[1739527136708,0.5667,2715.3,2715.2,0.73646]
[1739527137409,1.30315,2715.3,2715.1,0.73648]
[1739527137608,1.30315,2715.3,2715.0,1.5787298]
[1739527137908,0.5667,2715.3,2715.0,1.5787298]
[1739527138110,1.30317,2715.3,2715.1,0.73649]
[1739527139011,1.30317,2715.3,2715.1,0.73648]
[1739527139212,0.578,2715.2,2715.1,0.73648]
[1739527139510,0.578,2715.2,2715.0,1.5787298]
[1739527139811,1.31448,2715.2,2715.0,1.5787298]
[1739527140001,1.31448,2715.2,2715.1,0.73651]
[1739527140509,1.31448,2715.2,2715.0,2.3152498]
[1739527140911,1.31448,2715.2,2715.1,0.73651]
[1739527141513,1.31448,2715.2,2715.0,1.5787298]
[1739527141514,0.578,2715.2,2715.0,1.5787298]
[1739527141708,1.31451,2715.2,2715.0,1.5787298]
[1739527141908,1.31451,2715.2,2715.1,0.73651]
[1739527142310,1.31451,2715.2,2715.0,1.5787298]
[1739527142510,0.578,2715.2,2715.1,0.73651]
[1739527142707,0.578,2715.2,2715.0,1.5787298]
[1739527143114,0.73651,2715.1,2715.0,1.0260298]
[1739527143623,0.73651,2715.1,2715.0,1.7625698]
[1739527144223,0.73651,2715.1,2715.0,1.0260298]
[1739527147723,1.31449,2715.2,2715.0,1.0260298]
[1739527147920,0.578,2715.2,2715.0,1.5992298]
[1739527148220,0.73651,2715.1,2715.0,2.3357498]
[1739527148618,1.3145,2715.2,2715.0,2.3357498]
[1739527148815,0.578,2715.2,2715.0,1.5992298]
[1739527149015,1.31451,2715.2,2715.0,2.3357598]
[1739527149216,0.578,2715.2,2715.0,2.3357598]
[1739527149417,0.73651,2715.1,2715.0,2.3357598]
[1739527150721,1.31451,2715.2,2715.0,1.5992298]
[1739527150920,1.31451,2715.2,2715.1,0.73651]
[1739527151128,0.73651,2715.1,2715.0,0.5732]
[1739527152224,0.73651,2715.1,2715.0,1.30974]
[1739527152724,0.73651,2715.1,2715.0,0.5732]
[1739527152926,0.73651,2715.1,2715.0,1.30974]
[1739527153129,0.73651,2715.1,2715.0,0.5732]
[1739527153814,0.73651,2715.1,2715.0,1.30974]
[1739527154319,0.73651,2715.1,2715.0,0.5732]
[1739527156127,0.73654,2715.0,2714.9,1.31946]
[1739527157314,0.73654,2715.0,2714.9,0.5829]
[1739527157922,0.73654,2715.0,2714.9,1.31946]
[1739527158522,0.578,2715.2,2714.9,0.5829]
[1739527158725,0.73652,2715.1,2714.9,1.31944]
[1739527159022,0.578,2715.2,2714.9,1.31944]
[1739527159023,0.578,2715.2,2714.9,0.5829]
[1739527159225,0.73651,2715.1,2715.0,0.5896]
[1739527159528,0.73651,2715.1,2715.0,1.32614]
[1739527159729,0.73651,2715.1,2715.0,0.5896]
[1739527160127,0.578,2715.2,2715.0,1.32614]
[1739527160330,0.73651,2715.1,2715.0,0.5896]
[1739527160517,0.73651,2715.1,2715.0,1.32614]
[1739527162432,0.578,2715.2,2715.0,0.5896]
[1739527162626,0.578,2715.2,2715.0,1.32613]
[1739527162627,0.73651,2715.1,2715.0,1.32613]
[1739527162931,0.73651,2715.1,2715.0,0.5896]
[1739527163130,0.73651,2715.1,2715.0,1.32614]
[1739527163336,0.73651,2715.1,2715.0,0.5896]
[1739527164429,0.73651,2715.1,2715.0,1.32614]
[1739527165438,0.73651,2715.1,2715.0,0.5896]
[1739527167633,0.73651,2715.1,2715.0,1.32614]
[1739527167931,0.73651,2715.1,2715.0,0.5896]
[1739527168138,0.73651,2715.1,2715.0,1.32614]
[1739527168330,0.73651,2715.1,2715.0,0.5896]
[1739527168531,0.73651,2715.1,2715.0,1.32613]
[1739527169032,0.73651,2715.1,2715.0,0.5896]
[1739527169929,0.73651,2715.1,2715.0,1.32614]
[1739527170433,0.578,2715.2,2715.1,0.73651]
[1739527170632,1.31448,2715.2,2715.1,0.73651]
[1739527171340,0.73648,2715.2,2715.1,0.73649]
[1739527171644,0.73648,2715.2,2715.1,0.73651]
[1739527173240,1.30058,2715.3,2715.2,0.73648]
[1739527173542,0.73649,2715.2,2715.1,0.73649]
[1739527176436,0.5641,2715.3,2715.0,2.2037298]
[1739527176746,1.30058,2715.3,2715.2,0.73648]
[1739527177642,3.7443,2715.4,2715.2,0.73648]
[1739527177643,4.48074,2715.4,2715.3,0.73645]
[1739527177835,4.48074,2715.4,2715.3,0.5531]
[1739527178037,4.48074,2715.4,2715.3,1.0899]
[1739527179448,4.48074,2715.4,2715.3,1.82635]
[1739527179845,4.48074,2715.4,2715.3,1.0899]
[1739527182352,4.48074,2715.4,2715.3,1.82635]
[1739527182753,1.27294,2715.4,2715.3,1.82635]
[1739527183054,1.27294,2715.4,2715.3,1.0899]
[1739527183256,3.7684,2715.5,2715.3,1.0899]
[1739527183555,0.73643,2715.4,2715.3,1.0899]
[1739527185245,3.7684,2715.5,2715.2,1.0260298]
[1739527185456,1.32655,2715.3,2715.2,1.0260298]
[1739527185843,0.73651,2715.1,2715.0,1.0260298]
[1739527186457,0.73654,2715.0,2714.9,0.5383]
[1739527187754,0.73652,2715.1,2714.9,1.27484]
[1739527187957,0.73652,2715.1,2715.0,1.0260298]
[1739527188156,4.508,2715.2,2715.0,1.7625498]
[1739527188349,0.73651,2715.1,2715.0,1.0260298]
[1739527188959,3.7715,2715.2,2715.0,1.0260298]
[1739527189155,3.7715,2715.2,2715.0,1.7625498]
[1739527189362,4.508,2715.2,2715.0,1.7625498]
[1739527189659,1.3002,2715.2,2715.0,1.7625398]
[1739527189859,1.3002,2715.2,2715.0,1.0260298]
[1739527190061,1.3002,2715.2,2715.1,0.73651]
[1739527190560,0.5637,2715.2,2715.1,0.73651]
[1739527190957,1.32656,2715.3,2715.2,0.73648]
[1739527191157,1.32656,2715.3,2715.2,1.7625098]
[1739527191764,1.32656,2715.3,2715.2,1.0260298]
[1739527192262,1.32656,2715.3,2715.2,2.1394298]
[1739527192461,1.32656,2715.3,2715.2,2.8759098]
[1739527192662,1.32656,2715.3,2715.2,2.1394298]
[1739527192860,1.32656,2715.3,2715.2,2.8759098]
[1739527193061,1.32656,2715.3,2715.2,2.1394298]
[1739527193255,1.32656,2715.3,2715.2,2.8759098]
[1739527193462,1.32656,2715.3,2715.2,2.1394298]
[1739527193664,1.32656,2715.3,2715.2,2.8759098]
[1739527193865,1.32656,2715.3,2715.2,2.1394298]
[1739527195360,0.5901,2715.3,2715.1,0.7365]
[1739527195564,0.73648,2715.2,2715.1,0.7365]
[1739527197264,1.32656,2715.3,2715.2,0.73648]
[1739527197469,1.32656,2715.3,2715.2,1.7625098]
[1739527197767,0.5901,2715.3,2715.0,2.1984298]
[1739527197966,0.73651,2715.1,2715.0,2.9349698]
[1739527198166,0.73651,2715.1,2715.0,2.1984298]
[1739527199571,0.73651,2715.1,2715.0,2.9349698]
[1739527199770,0.73651,2715.1,2715.0,2.1984298]
[1739527199964,1.31661,2715.1,2715.0,2.1984298]
[1739527200270,0.73656,2714.9,2714.8,1.76812558]
[1739527200469,0.5801,2715.1,2714.8,2.17611916]
[1739527200671,0.73655,2715.0,2714.9,0.73655]
[1739527200965,0.73655,2715.0,2714.9,0.5581]
[1739527201765,0.73655,2715.0,2714.9,1.29466]
[1739527202068,0.73655,2715.0,2714.9,1.7026122]
[1739527202271,0.73655,2715.0,2714.9,0.9660522]
[1739527202472,0.5801,2715.1,2714.9,0.9660522]
[1739527202668,1.31661,2715.1,2715.0,1.7625698]
[1739527202864,0.5801,2715.1,2715.0,1.7625698]
[1739527203068,0.5901,2715.3,2715.2,0.73648]
[1739527203266,0.5901,2715.3,2715.2,1.7625098]
[1739527203966,1.32656,2715.3,2715.2,1.7625098]
[1739527205961,1.32655,2715.3,2715.2,1.7625098]
[1739527206377,0.73644,2715.4,2715.3,0.73645]
[1739527206569,3.7884,2715.5,2715.2,1.0260298]
[1739527206769,3.94422,2715.5,2715.4,1.7624598]
[1739527207267,3.9442,2715.5,2715.4,1.7624598]
[1739527207467,3.7576,2715.5,2715.2,1.0260298]
[1739527207672,0.73645,2715.4,2715.2,1.7624898]
[1739527207871,0.73645,2715.4,2715.3,0.73645]
[1739527208066,4.3399,2715.5,2715.2,1.0260298]
[1739527208268,4.3399,2715.5,2715.3,0.73643]
[1739527208465,0.73644,2715.4,2715.2,1.0260298]
[1739527208671,4.3399,2715.5,2715.2,1.0260298]
[1739527208875,0.73644,2715.4,2715.3,0.73645]
[1739527209080,4.3399,2715.5,2715.2,1.0260298]
[1739527209572,0.73644,2715.4,2715.3,0.73644]
[1739527209879,0.73643,2715.4,2715.3,0.73644]
[1739527210779,4.3399,2715.5,2715.2,1.0260298]
[1739527210985,0.73644,2715.4,2715.3,0.73645]
[1739527211180,0.73644,2715.4,2715.3,0.73644]
[1739527211473,1.1321,2715.5,2715.2,1.0260298]
[1739527211675,1.1321,2715.5,2715.4,1.7624598]
[1739527212487,0.7364,2715.5,2715.4,1.7624398]
[1739527213385,0.00552578,2715.6,2715.5,0.7364]
[1739527213578,0.74189578,2715.6,2715.5,0.5555]
[1739527213777,0.74189578,2715.6,2715.5,1.2919]
[1739527213988,0.00552578,2715.6,2715.5,1.2919]
[1739527214176,0.00552578,2715.6,2715.5,1.8288]
[1739527214376,0.74189578,2715.6,2715.5,1.0924]
[1739527214780,0.74189578,2715.6,2715.5,1.8288]
[1739527215381,0.00552578,2715.6,2715.5,1.8288]
[1739527215587,0.74189578,2715.6,2715.5,1.8288]
[1739527215976,0.00552578,2715.6,2715.5,1.8288]
[1739527216185,0.74189578,2715.6,2715.5,1.8288]
[1739527216494,0.00552578,2715.6,2715.5,1.8288]
[1739527217187,0.00552578,2715.6,2715.5,2.3739]
[1739527217485,1.03155558,2715.6,2714.8,3.21332578]
[1739527217675,0.73654,2715.0,2714.9,2.1818298]
[1739527217981,1.0260298,2715.4,2714.9,2.1818298]
[1739527217982,0.73651,2715.1,2714.9,2.9183798]
[1739527218180,1.30884,2715.0,2714.9,2.1818298]
[1739527222073,1.30884,2715.0,2714.9,0.5854]
[1739527222277,0.73656,2714.9,2714.8,0.00552578]
[1739527222481,3.94436,2714.9,2714.8,0.00552578]
[1739527224584,3.2078,2714.9,2714.8,0.00552578]
[1739527224981,3.2078,2714.9,2714.8,1.17652578]
[1739527225181,3.2078,2714.9,2714.8,1.91311578]
[1739527225485,3.2078,2714.9,2714.8,1.17652578]
[1739527225782,3.94436,2714.9,2714.8,1.17652578]
[1739527225981,3.2078,2714.9,2714.8,1.17652578]
[1739527226285,3.94436,2714.9,2714.8,1.17652578]
[1739527227381,3.94436,2714.9,2714.8,0.00552578]
[1739527230786,0.73656,2714.9,2714.8,3.21332578]
[1739527230983,1.1516,2715.3,2714.8,3.21332578]
[1739527231183,1.7198,2715.3,2715.2,1.7625098]
[1739527231488,1.7198,2715.3,2715.2,1.0260298]
[1739527231689,1.7198,2715.3,2715.0,1.0260298]
[1739527232185,1.7198,2715.3,2714.8,4.23935558]
[1739527232393,1.7198,2715.3,2714.8,4.97592558]
[1739527232689,1.7198,2715.3,2714.9,0.73656]
[1739527232891,0.73652,2715.1,2715.0,1.0260298]
[1739527233687,1.7198,2715.3,2714.8,5.43639434]
[1739527233992,0.73652,2715.1,2714.9,0.73654]
[1739527234188,0.73653,2715.1,2714.9,0.73654]
[1739527234388,1.7198,2715.3,2714.9,0.73654]
[1739527234793,0.73653,2715.1,2714.9,0.73654]
[1739527234993,0.73654,2715.0,2714.9,0.73654]
[1739527235189,1.7198,2715.3,2714.8,5.43639434]
[1739527235492,0.5706,2714.9,2714.8,6.17296434]
[1739527235888,1.1174,2714.9,2714.8,6.17296434]
[1739527236194,1.1174,2714.9,2714.8,5.43639434]
[1739527236494,1.85396,2714.9,2714.8,5.43639434]
[1739527236694,1.1174,2714.9,2714.8,5.43639434]
[1739527236996,1.1174,2714.9,2714.8,6.17298434]
[1739527240189,3.2078,2715.5,2714.8,5.43639434]
[1739527240386,1.85764,2715.4,2715.3,0.73644]
[1739527240588,1.1212,2715.4,2715.2,0.5582]
[1739527240795,1.1212,2715.4,2715.2,1.1349]
[1739527240995,1.85764,2715.4,2715.3,0.73645]
[1739527241196,1.1212,2715.4,2715.3,0.73645]
[1739527242108,1.85763,2715.4,2715.3,0.73645]
[1739527242395,0.73648,2715.2,2715.1,2.22306856]
[1739527243798,0.5702,2715.3,2714.9,0.5902]
[1739527244098,0.73654,2715.0,2714.9,0.73655]
[1739527244397,2.1472,2715.3,2714.9,0.73655]
[1739527244599,0.73652,2715.1,2714.8,5.97759434]
[1739527244800,0.5472,2715.0,2714.9,1.32646]
[1739527244990,2.6911,2715.4,2714.9,3.40316856]
[1739527245192,3.42753,2715.4,2715.3,0.73645]
[1739527245692,3.42753,2715.4,2715.3,1.32635]
[1739527245894,3.42753,2715.4,2715.3,0.5899]
[1739527246085,3.42753,2715.4,2715.3,1.32635]
[1739527246295,3.42753,2715.4,2715.3,0.5899]
[1739527246592,0.73645,2715.3,2715.2,2.22306856]
[1739527246802,0.73645,2715.3,2715.2,2.95954856]
[1739527247498,0.73645,2715.3,2715.2,2.22306856]